Cogmind - Beta 10.2 @@@ ROGUE MODE // 2022.03.15 @ 22:41:12 Player: Yanche Result: Destroyed by G-34 Mercenary with Small Laser Performance ------------- Evolutions (0) 0 Regions Visited (4) 800 Robots Destroyed (23) 115 Value Destroyed (376) 376 Prototype IDs (0) 0 Alien Tech Used (0) 0 Bonus (0) 0 TOTAL SCORE: 1291 Bonus ------- None Cogmind --------- Core Integrity 0/250 Matter 296/300 Energy 250/250 System Corruption 0% Temperature Cool (6) Movement Rolling (100) Location -9/Mines Parts ------- > --- POWER (1) -------- Ion Engine > --- PROPULSION (2) --- Compact Wheel > --- UTILITY (2) ------ Medium Storage Unit Hacking Suite > --- WEAPON (2) ------- Light Assault Rifle Light Assault Rifle > --- INVENTORY (8) ---- Experimental Sensor Array Improved Terrain Scanner Core Shielding Peak State ------------ > --- POWER ------------ Ion Engine > --- PROPULSION ------- Wheel Compact Wheel > --- UTILITY ---------- Small Storage Unit Hacking Suite > --- WEAPON ----------- Assault Rifle Light Assault Rifle > --- INVENTORY -------- Ion Engine Compact Wheel Experimental Sensor Array Improved Terrain Scanner Core Shielding Light Assault Rifle [Rating: 10] Favorites ----------- Power Ion Engine Engine Ion Engine Propulsion Compact Wheel Wheel Compact Wheel Utility Hacking Suite Device Structural Scanner Storage Small Storage Unit Hackware Hacking Suite Protection Core Shielding Weapon Light Assault Rifle Ballistic Gun Light Assault Rifle Build | -11 -10 -10 -10 -9 ------- Run | Scr Mat Min Exi Min Slots Evolved . | . . . . . Power . | . . . . . Propulsion . | . . . . . Utility . | . . . . . Weapon . | . . . . . Parts Attached 20 | 6 5 2 1 6 Power 2 | 1 . . . 1 Engine 2 | 1 . . . 1 Core . | . . . . . Reactor . | . . . . . Propulsion 8 | 2 2 2 . 2 Treads . | . . . . . Leg . | . . . . . Wheel 8 | 2 2 2 . 2 Hover . | . . . . . Flight . | . . . . . Utility 5 | 1 3 . 1 . Device 1 | . 1 . . . Storage 2 | 1 . . 1 . Processor . | . . . . . Hackware 1 | . 1 . . . Protection 1 | . 1 . . . Artifact . | . . . . . Weapon 5 | 2 . . . 3 Energy Gun . | . . . . . Energy Cannon . | . . . . . Ballistic Gun 5 | 2 . . . 3 Ballistic Cannon . | . . . . . Launcher . | . . . . . Special Weapon . | . . . . . Impact Weapon . | . . . . . Slashing Weapon . | . . . . . Piercing Weapon . | . . . . . Special Melee Weapon . | . . . . . Unidentified Prototypes . | . . . . . Parts Lost 7 | . 1 . . 6 Power 1 | . . . . 1 Propulsion 3 | . 1 . . 2 Utility . | . . . . . Weapon 3 | . . . . 3 Highest Loss Streak 4 | . 1 . . 4 Average Slot Usage (%) 96 | . 96 100 100 90 Engine 14 | . 14 14 14 14 Wheel 25 | . 25 28 28 21 Device 1 | . 6 . . . Storage 14 | . 14 14 14 14 Hackware 11 | . 4 14 14 14 Ballistic Gun 27 | . 28 28 28 25 Naked Turns . | . . . . . Heaviest Build 16 | 12 13 12 16 16 Greatest Support 32 | 32 32 26 26 32 Greatest Overweight (x) . | . . . . . Average Overweight (x) . | . . . . . Largest Inventory Capacity 8 | 6 6 6 8 8 Average Capacity 6 | 5 6 6 6 8 Most Carried 6 | 3 6 6 6 6 Average Carried 5 | 1 5 5 6 4 Final Capacity 8 | 6 6 6 8 8 Final Carried 6 | 3 6 6 6 3 Class Distribution -------------------- 86% | Mutant 13% | Scavenger-Mutant Dominant Class ---------------- Mutant | -10/Materials Mutant | -10/Mines Mutant | -10/Exiles Scavenger-Mutant | -9/Mines Resources | -11 -10 -10 -10 -9 ----------- Run | Scr Mat Min Exi Min Matter Collected 681 | 276 140 97 . 168 Remotely . | . . . . . Salvage Created 882 | 103 213 187 . 379 Parts 52 | 7 20 13 . 12 Haulers Intercepted . | . . . . . Recyclers Shooed 6 | . . 2 . 4 Parts Field Recycled . | . . . . . Retrieved Matter . | . . . . . Parts Self-Destructed . | . . . . . Prevented . | . . . . . Kills | -11 -10 -10 -10 -9 ------- Run | Scr Mat Min Exi Min Combat Hostiles Destroyed 13 | . 6 . . 7 Guns 13 | . 6 . . 7 Classes Destroyed 8 | 2 4 1 . 1 Worker 1 | . 1 . . . Builder 1 | . . 1 . . Tunneler 2 | 1 . 1 . . Recycler 5 | 1 . 2 . 2 Operator 1 | . 1 . . . Swarmer 7 | . 3 . . 4 Grunt 5 | . 3 . . 2 Duelist 1 | . . . . 1 Best Kill Streak 4 | 2 2 3 . 4 Combat Bots Only 3 | . 2 . . 3 Max Kills in Single Turn 1 | 1 1 1 . 1 Gunslinging . | . . . . . Exploded . | . . . . . Melee . | . . . . . Uniques/NPCs Destroyed . | . . . . . Combat | -11 -10 -10 -10 -9 -------- Run | Scr Mat Min Exi Min Damage Taken 928 | . 293 1 . 634 Core 258 | . 65 . . 193 Absorbed by Shields . | . . . . . Core Remaining (%) 100 | 100 . . . . Volleys Fired 104 | 4 31 13 . 56 Largest 2 | 2 2 2 . 2 Hottest 40 | 40 40 40 . 40 Shots Fired 185 | 8 62 26 . 89 Gun 185 | 8 62 26 . 89 Cannon . | . . . . . Launcher . | . . . . . Special . | . . . . . Kinetic 185 | 8 62 26 . 89 Thermal . | . . . . . Explosive . | . . . . . Electromagnetic . | . . . . . Robot Hit Streak 9 | 2 7 5 . 9 Robot Miss Streak 3 | 2 3 3 . 3 Penetration Max . | . . . . . Secondary Targets . | . . . . . Shots Hit Robots 117 | 3 37 15 . 62 Core Hits 43 | 3 11 7 . 22 Critical Hits . | . . . . . Critical Kills . | . . . . . Critical Parts Destroyed . | . . . . . Melee Attacks . | . . . . . Impact . | . . . . . Slashing . | . . . . . Piercing . | . . . . . Sneak Attacks . | . . . . . Combat Hostiles . | . . . . . Follow-up Attacks . | . . . . . Damage Inflicted 1096 | 43 340 148 . 565 Guns 1093 | 43 340 145 . 565 Cannons . | . . . . . Explosions . | . . . . . Melee . | . . . . . Ramming 3 | . . 3 . . Kinetic 1093 | 43 340 145 . 565 Thermal . | . . . . . Explosive . | . . . . . Electromagnetic . | . . . . . Impact . | . . . . . Slashing . | . . . . . Piercing . | . . . . . Highest Corruption . | . . . . . Average Corruption . | . . . . . Corruption Purged . | . . . . . Overload Shots . | . . . . . Overflow Damage . | . . . . . Projectiles . | . . . . . Explosions . | . . . . . Melee . | . . . . . Knockbacks . | . . . . . Impact . | . . . . . Kinetic . | . . . . . Secondary . | . . . . . Self-Inflicted Damage 1 | . . 1 . . Shots . | . . . . . Rammed 2 | . . 1 . 1 Targets Rammed 2 | . . 1 . 1 Kicked . | . . . . . Crushed . | . . . . . Highest Temperature 19 | . 12 . . 19 Average Temperature 8 | . 7 . . 8 Received Heat Transfer 249 | . 66 . . 183 Siege Activations . | . . . . . Robots Corrupted . | . . . . . Combat Hostiles . | . . . . . Parts Fried . | . . . . . Impact Corruptions . | . . . . . Robots Melted . | . . . . . Combat Hostiles . | . . . . . Parts Melted . | . . . . . Heat Transferred . | . . . . . Parts Sabotaged . | . . . . . Parts Stolen . | . . . . . Parts Stripped . | . . . . . Power Chain Reactions . | . . . . . Missiles Intercepted . | . . . . . Alert | -11 -10 -10 -10 -9 ------- Run | Scr Mat Min Exi Min Peak Influence 218 | 10 218 104 . 130 Initial 84 | . 6 84 . . Average 91 | 3 111 98 . 81 Maximum Alert Level 1 | . 1 . . . Low Security (%) 94 | 100 81 100 . 100 Level 1 5 | . 18 . . . Level 2 . | . . . . . Level 3 . | . . . . . Level 4 . | . . . . . Level 5 . | . . . . . High Security . | . . . . . Max Security . | . . . . . Squads Dispatched 1 | . 1 . . . Investigation . | . . . . . Extermination . | . . . . . Reinforcement 1 | . 1 . . . Assault . | . . . . . Garrison . | . . . . . Intercept . | . . . . . Construction Impeded . | . . . . . Haulers Reinforced . | . . . . . Stealth | -11 -10 -10 -10 -9 --------- Run | Scr Mat Min Exi Min Distress Signals 1 | . 1 . . . Communications Jammed . | . . . . . Distress Signals . | . . . . . Times Spotted 19 | . 10 . . 9 Peak Tracking Total 4 | . 4 . . 4 Tactical Retreats . | . . . . . Traps | -11 -10 -10 -10 -9 ------- Run | Scr Mat Min Exi Min Traps Triggered . | . . . . . Indirectly . | . . . . . Trap Hack Attempts . | . . . . . Triggered . | . . . . . Disarmed . | . . . . . Reprogrammed . | . . . . . Reused . | . . . . . Traps Extracted . | . . . . . Installed . | . . . . . Triggered . | . . . . . Machines | -11 -10 -10 -10 -9 ---------- Run | Scr Mat Min Exi Min Machines Disabled 1 | . 1 . . . Max in Single Turn 1 | . 1 . . . Machines Sabotaged . | . . . . . Garrisons Compromised . | . . . . . Overloaded Fab Kills . | . . . . . Fab Network Shutdowns . | . . . . . Hacking | -11 -10 -10 -10 -9 --------- Run | Scr Mat Min Exi Min Machines Accessed 4 | . 2 . 2 . Terminals 2 | . 2 . . . Fabricators . | . . . . . Repair Stations . | . . . . . Recycling Units . | . . . . . Scanalyzers . | . . . . . Garrison Access . | . . . . . Total Hacks 6 | . 4 . 2 . Successful 5 | . 3 . 2 . Failed 1 | . 1 . . . Catastrophic . | . . . . . Database Lockouts . | . . . . . Manual . | . . . . . Terminals 4 | . 4 . . . Fabricators . | . . . . . Repair Stations . | . . . . . Recycling Units . | . . . . . Scanalyzers . | . . . . . Garrison Access . | . . . . . Terminal Hacks 5 | . 3 . 2 . Record 2 | . . . 2 . Branch Access Points 1 | . 1 . . . Dispatch Records 1 | . 1 . . . Patrol Status 1 | . 1 . . . Fabricator Hacks . | . . . . . Repair Station Hacks . | . . . . . Recycling Unit Hacks . | . . . . . Scanalyzer . | . . . . . Garrison Access Hacks . | . . . . . Unauthorized Hacks . | . . . . . Terminals . | . . . . . Fabricators . | . . . . . Repair Stations . | . . . . . Recycling Units . | . . . . . Scanalyzers . | . . . . . Garrison Access . | . . . . . Data Cores Recovered . | . . . . . Used . | . . . . . Hacking Detections 2 | . 2 . . . Full Trace Events . | . . . . . Feedback Events . | . . . . . Feedback Blocked . | . . . . . Robot Schematics Acquired . | . . . . . Robots Built . | . . . . . Matter . | . . . . . Time . | . . . . . Total Robot Build Rating . | . . . . . Part Schematics Acquired . | . . . . . Parts Built . | . . . . . Matter . | . . . . . Time . | . . . . . Total Part Build Rating . | . . . . . Parts Repaired . | . . . . . Time . | . . . . . Parts Recycled . | . . . . . Recycled Matter . | . . . . . Retrieved Matter . | . . . . . Retrieved Components . | . . . . . Parts Scanalyzed . | . . . . . Part Schematics Acquired . | . . . . . Parts Damaged . | . . . . . Bothacking | -11 -10 -10 -10 -9 ------------ Run | Scr Mat Min Exi Min Used RIF Installer . | . . . . . Robots Hacked . | . . . . . Non-combat . | . . . . . Combat . | . . . . . Robot Hacks Applied . | . . . . . Relay Couplers Released . | . . . . . Robots Rewired . | . . . . . Allies Hacked . | . . . . . Hacks Repelled . | . . . . . Allies | -11 -10 -10 -10 -9 -------- Run | Scr Mat Min Exi Min Total Allies . | . . . . . Largest Group . | . . . . . Highest-Rated Group . | . . . . . Highest-Rated Ally . | . . . . . Total Orders . | . . . . . Ally Attacks . | . . . . . Total Damage . | . . . . . Kills . | . . . . . Allies Corrupted . | . . . . . Allies Melted . | . . . . . Intel | -11 -10 -10 -10 -9 ------- Run | Scr Mat Min Exi Min Robot Analysis Total . | . . . . . Derelict Logs Recovered 1 | . . . . 1 Drone Launches . | . . . . . Drone Recoveries . | . . . . . Exploration | -11 -10 -10 -10 -9 ------------- Run | Scr Mat Min Exi Min Turns Passed 1299 | 68 340 368 189 334 Spaces Moved 1023 | 46 249 375 209 144 Core 1 | 1 . . . . Treads . | . . . . . Legs . | . . . . . Wheels 1022 | 45 249 375 209 144 Hover . | . . . . . Flight . | . . . . . Fastest Speed 50 | 50 80 80 90 90 Average Speed 91 | 98 94 86 90 98 Slowest Speed 100 | 100 100 90 90 100 Overloaded Moves . | . . . . . Propulsion Burnouts . | . . . . . Robots Hopped . | . . . . . Cave-ins Triggered . | . . . . . Exploration Rate (%) 35 | 3 32 58 63 20 Regions Visited 4 Branch Regions 3 Pre-discovered Areas . | . . . . . Known Exits Taken 1 | . 1 . . . Unknown Exits Taken 3 | 1 . 1 1 . Scrap Searched 1 | . . 1 . . Spaces Dug . | . . . . . Terrain Destroyed . | . . . . . Melee . | . . . . . Projectile . | . . . . . AOE . | . . . . . Terrain Rammed . | . . . . . Walls Destroyed . | . . . . . Machines Disabled . | . . . . . Actions | -11 -10 -10 -10 -9 --------- Run | Scr Mat Min Exi Min Total 1220 | 58 296 396 210 260 Wait 59 | . 8 . . 51 Move 1019 | 45 248 374 208 144 Hop . | . . . . . Pick Up 9 | 3 3 2 . 1 Fast Attach 9 | 6 2 . . 1 Attach 4 | . . . . 4 Detach . | . . . . . Swap 7 | . 3 2 1 1 Drop 7 | . 1 4 1 1 Fire 104 | 4 31 13 . 56 Melee . | . . . . . Ram 2 | . . 1 . 1 Kick . | . . . . . Crush . | . . . . . Escape Stasis . | . . . . . Rewire . | . . . . . Trap . | . . . . . Miscellaneous . | . . . . . Route ------- -11/Scrapyard -10/Materials (discovered 2 exits: *Min x2) -10/Mines (discovered 2 exits: [*Mat] / *Exi) -10/Exiles (discovered 2 exits: [*Min x2]) -9/Mines (discovered 1 exit: Mat) History --------- Turn | Location | Event 11 | -11/Scrapyard | Discovered new exit (range 15) 69 | -11/Scrapyard | Entered Materials 304 | -10/Materials | Build established: Mutant 388 | -10/Materials | Discovered new exit (range 15) 402 | -10/Materials | Identified exit to Mines 409 | -10/Materials | Entered Mines 435 | -10/Mines | Deemed a non-threat by the Exiles lab entrance 435 | -10/Mines | Discovered new exit (range 5) 675 | -10/Mines | Found a damaged Exp. Sensor Array with a note attached 677 | -10/Mines | Found Prototype Device 682 | -10/Mines | Discovered new exit (range 10) 777 | -10/Mines | Entered Exiles 777 | -10/Exiles | Found Exiles lab abandoned 789 | -10/Exiles | Discovered new exit (range 15) 958 | -10/Exiles | Discovered new exit (range 10) 966 | -10/Exiles | Entered Mines 977 | -9/Mines | Core integrity fell below 50% 1095 | -9/Mines | Core integrity fell below 20% 1145 | -9/Mines | Lost 4 parts (1p1n2w) 1156 | -9/Mines | Identified exit to Materials 1300 | -9/Mines | Destroyed by G-34 Mercenary with Small Laser Last Messages --------------- Acquired 8 matter. Acquired Lgt. Assault Rifle. R-06 Scavenger collects Lgt. Nuclear Core. Acquired 10 matter. Acquired 6 matter. Acquired derelict log, extracted data. K-01 Serf collects debris. Destroyed Com. Wheel. Acquired 6 matter. K-01 Serf collects debris. R-06 Scavenger destroyed. K-01 Serf collects debris. Acquired 8 matter. K-01 Serf collects debris. Dropped Com. Wheel. Acquired 10 matter. K-01 Serf collects debris. Slammed into T-07 Excavator. Com. Wheel destroyed. L-31 Rogue destroyed. Map ----- +----------------------------------------------------+ | ???????????????????????????????? | | ???????????????????????????????? | | ???????????????????????????????? | | ???????????????????????????????? | | ???????????????????????????????? | | ???????????????????????????????? | | ???????????????????????????????? | | ???????????????????????????????? | | ???????????????????????????????? | | ???????????????????????????????? | | ???????????????????????????????? | | ???????????????????????????????? | | ???????????????????????????????? | | ???????????????????????????????? | | ??????#????????????????????????? | | ?????? ""????????????